bitfinex/quotes_ETHUSD_20260121
["timestamp","ask_amount","ask_price","bid_price","bid_amount"]
[1769023689650,0.10332357,2960.3,2956.2,10.143174]
[1769023689806,0.10332357,2960.9,2957.2,0.05]
[1769023690006,0.10332357,2959.4,2956.9,16.050697]
[1769023690212,0.10332357,2959.7,2957.0,14.5]
[1769023690517,0.10332357,2959.6,2957.4,6.825683]
[1769023690703,0.10332357,2959.6,2957.0,14.55]
[1769023690704,0.10332357,2959.8,2957.5,0.6825683]
[1769023690905,0.10332357,2959.7,2957.1,30.0]
[1769023691130,0.10332357,2960.6,2957.7,0.05]
[1769023691330,0.682568,2960.1,2957.6,9.336157]
[1769023691546,0.682568,2959.4,2956.8,14.967424]
[1769023691752,0.10332357,2960.2,2956.8,14.967424]
[1769023691753,10.1312501,2961.2,2957.4,7.287569]
[1769023692062,0.10332357,2960.0,2957.6,3.728536]
[1769023692341,0.10332357,2959.5,2957.5,1.40504946]
[1769023692542,0.682568,2959.4,2957.1,3.028192]
[1769023692746,0.682568,2959.0,2956.9,3.062415]
[1769023692943,0.10332357,2959.7,2956.5,3.050412]
[1769023693107,0.10332357,2960.0,2957.5,3.38121303]
[1769023693314,0.682568,2959.9,2957.7,30.0]
[1769023693544,0.682568,2959.9,2957.9,8.792881]
[1769023693847,4.60282888,2961.4,2957.9,8.792881]
[1769023693848,3.37598325,2962.1,2958.6,0.10332357]
[1769023694005,3.37598325,2962.1,2959.0,0.10332357]
[1769023694207,0.10332357,2961.5,2959.1,3.097]
[1769023694411,2.65518419,2963.4,2959.6,5.00649626]
[1769023694610,0.10332357,2963.3,2962.0,0.05]
[1769023694913,0.10332357,2962.4,2959.9,7.281352]
[1769023695106,0.10332357,2963.2,2960.1,15.636137]
[1769023695327,0.10332357,2963.1,2960.1,24.509473]
[1769023695552,0.10332357,2963.0,2960.3,20.284189]
[1769023695733,0.10332357,2962.4,2960.3,10.902145]
[1769023695935,0.10332357,2962.6,2960.3,2.053061]
[1769023696249,0.10332357,2962.4,2960.0,2.227495]
[1769023696449,0.10332357,2962.3,2959.8,7.30804]
[1769023696743,0.10332357,2960.9,2958.5,4.4357]
[1769023696985,0.10332357,2960.4,2957.9,4.338924]
[1769023697119,0.10332357,2960.6,2957.9,4.338924]
[1769023697120,0.10332357,2960.3,2957.9,4.338924]
[1769023697453,0.10332357,2959.7,2957.2,2.226055]
[1769023697619,0.10332357,2960.1,2956.5,16.912345]
[1769023697620,0.10332357,2959.2,2956.5,16.912345]
[1769023697831,0.10332357,2959.2,2956.4,0.001]
[1769023697832,2.59436324,2959.3,2957.2,30.0]
[1769023698009,2.59436324,2959.3,2957.3,0.23132357]
[1769023698220,2.59436324,2959.3,2957.3,0.53773763]
[1769023698426,2.59436324,2959.3,2958.1,29.129865]
[1769023698661,6.72689793,2961.7,2958.2,30.10332357]
[1769023698662,3.37678125,2961.4,2958.2,30.10332357]
[1769023698957,0.165136,2960.9,2958.5,30.0]
[1769023699119,0.165136,2960.9,2958.8,30.0]
[1769023699322,13.24645196,2962.6,2959.9,30.0]
[1769023699552,0.165136,2961.9,2959.8,10.611847]
[1769023699769,6.49557436,2962.6,2960.3,0.10332357]
[1769023699929,0.64955744,2962.5,2960.5,26.363593]
[1769023700263,0.10332357,2963.6,2960.6,3.37769371]
[1769023700264,0.10332357,2963.3,2960.6,3.37769371]
[1769023700468,15.84981783,2963.4,2960.9,0.10332357]
[1769023700684,9.10075855,2963.4,2961.8,0.10332357]
[1769023700855,2.60518419,2963.4,2962.0,0.10332357]
[1769023701056,2.60518419,2963.4,2962.1,0.10332357]
[1769023701261,2.60518419,2963.4,2961.3,0.10332357]
[1769023701434,2.60518419,2963.4,2961.4,4.176204]
[1769023701435,5.97976223,2963.4,2961.4,4.176204]
[1769023701636,2.60518419,2963.4,2961.3,0.10332357]
[1769023701865,2.60518419,2963.4,2961.2,0.02614611]
[1769023701866,9.35428916,2963.4,2961.2,0.02614611]
[1769023702166,9.35428916,2963.4,2961.0,0.10332357]
[1769023702167,7.43100328,2963.3,2961.3,0.10332357]
[1769023702370,7.43100328,2963.3,2961.7,0.10332357]
[1769023702542,0.93542892,2963.3,2962.1,0.10332357]
[1769023702746,2.42205405,2963.4,2963.1,0.10332357]
[1769023703048,2.77564024,2965.1,2963.2,0.128]
[1769023703257,0.87119385,2965.9,2963.9,29.140726]
[1769023703499,0.87119385,2965.9,2964.2,30.0]
[1769023703639,2.86598228,2966.3,2964.6,0.10332357]
[1769023703833,6.49557436,2967.7,2965.8,8.505142]
[1769023703834,2.77372901,2967.1,2965.8,8.505142]
[1769023704039,2.77372901,2967.1,2965.0,0.10332357]
[1769023704040,6.49557436,2967.0,2965.0,0.10332357]
[1769023704343,6.49557436,2967.0,2966.1,0.10332357]
[1769023704533,7.4225047,2967.0,2965.2,0.10332357]
[1769023704740,7.4225047,2967.0,2965.2,2.653054]
[1769023704938,7.4225047,2967.0,2964.5,0.10332357]
[1769023704939,7.4225047,2967.0,2964.9,0.10332357]
[1769023705178,7.4225047,2967.0,2964.3,0.10332357]
[1769023705179,6.49557436,2966.4,2963.3,3.47787744]
[1769023705362,0.92693034,2967.0,2964.6,13.765135]
[1769023705680,0.0064342,2969.0,2967.6,0.00080008]
[1769023705839,6.49557436,2968.7,2967.6,0.00080008]
[1769023706036,0.0064342,2969.0,2967.0,0.23437038]
[1769023706355,0.10332357,2968.4,2965.7,9.126114]
[1769023706555,0.10412357,2969.1,2965.9,10.48828857]
[1769023706556,3.36886194,2969.1,2965.9,10.48828857]
[1769023706776,0.10332357,2968.3,2965.9,0.10332357]
[1769023707011,0.10332357,2968.7,2965.7,2.654456]
[1769023707286,0.002,2968.2,2967.5,0.10332357]
[1769023707495,0.0008,2969.7,2968.1,0.10332357]
[1769023707703,0.0008,2969.7,2967.2,0.10332357]
[1769023707704,0.00134006,2969.6,2967.2,0.10332357]
[1769023707998,3.36885168,2969.6,2967.5,0.10332357]
[1769023708325,0.10332357,2969.3,2966.7,0.10332357]
[1769023708437,6.59889793,2968.6,2965.0,0.10332357]
[1769023708637,6.49557436,2968.4,2965.9,0.10332357]
[1769023708882,5.27966698,2969.1,2966.5,0.10332357]
[1769023709064,5.27966698,2969.1,2964.2,0.10332357]
[1769023709065,6.49557436,2967.3,2964.2,0.10332357]
[1769023709376,6.49557436,2967.3,2962.9,0.84160764]
[1769023709377,0.10332357,2965.5,2962.5,2.048977]
[1769023709680,0.10332357,2966.0,2961.9,1.38868634]
[1769023709681,0.10332357,2965.1,2962.1,2.391295]
[1769023709985,6.49557436,2965.7,2963.2,0.10332357]
[1769023710152,0.10332357,2965.1,2962.7,0.10332357]
[1769023710480,6.74513506,2965.1,2962.5,4.040053]
[1769023710684,0.10332357,2964.8,2962.6,0.41433766]
[1769023710849,1.32407094,2965.0,2962.4,3.314014]
[1769023711176,1.32407094,2965.0,2962.7,0.10332357]
[1769023711389,6.49557436,2965.2,2962.8,2.193011]
[1769023711538,6.49557436,2965.2,2962.9,0.10332357]
[1769023711740,9.86804742,2965.2,2962.8,7.882003]
[1769023711955,9.86808559,2965.2,2962.7,0.10332357]
[1769023712237,9.86808559,2965.2,2962.0,0.001]
[1769023712238,0.10332357,2964.3,2962.0,0.001]
[1769023712471,0.10332357,2964.1,2961.4,0.10332357]
[1769023712659,0.10332357,2963.9,2961.5,3.057324]
[1769023712862,6.49557436,2964.1,2961.5,7.637524]
[1769023713040,3.37297282,2964.8,2962.1,0.10332357]
[1769023713379,3.37297282,2964.8,2961.4,0.10332357]
[1769023713380,0.10332357,2963.9,2961.4,0.10332357]
[1769023713677,0.10332357,2963.7,2961.5,2.991266]
[1769023713889,0.10332357,2963.7,2960.2,5.195031]
[1769023713890,0.10332357,2963.0,2960.2,5.195031]
[1769023714038,6.49557436,2964.1,2961.8,0.10332357]
[1769023714240,0.98680856,2965.1,2962.4,0.10332357]
[1769023714439,9.86777445,2965.5,2963.3,0.10332357]
[1769023714641,13.23997454,2965.5,2963.1,0.10332357]
[1769023714885,0.10332357,2965.4,2962.2,0.10332357]
[1769023715082,3.47505598,2965.9,2962.2,0.10332357]
[1769023715083,3.37108953,2966.4,2963.8,0.10332357]
[1769023715249,0.10332357,2966.3,2963.9,2.711426]
[1769023715442,0.68455026,2966.2,2964.0,0.28147496]
[1769023715769,0.68455026,2966.2,2963.8,0.10332357]
[1769023715770,0.10332357,2966.1,2963.8,0.10332357]
[1769023715978,0.68455026,2966.2,2963.8,0.10332357]
[1769023716294,0.10332357,2967.4,2964.5,3.0152]
[1769023716588,6.49557436,2967.5,2965.1,0.10332357]
[1769023716775,3.47304994,2967.6,2964.6,28.911561]
[1769023716776,6.49557436,2966.8,2964.6,28.911561]
[1769023716961,0.10332357,2967.4,2964.7,0.10332357]
[1769023717160,0.10332357,2967.3,2964.8,2.73907086]
[1769023717361,0.68427763,2967.4,2964.6,4.693428]
[1769023717551,0.10332357,2967.3,2964.8,2.556808]
[1769023717959,0.10332357,2966.7,2964.3,0.10332357]
[1769023718147,0.68427763,2967.4,2964.2,9.38028]
[1769023718359,6.74149728,2966.7,2964.3,2.2056]
[1769023718581,6.74149728,2966.7,2964.4,0.32388357]
[1769023718582,0.68448209,2966.6,2964.4,0.32388357]
[1769023718790,0.68448209,2966.6,2963.7,0.10332357]
[1769023718791,0.002,2965.9,2963.7,0.10332357]
[1769023719083,0.002,2965.9,2964.3,0.10332357]
[1769023719387,0.002,2965.9,2964.2,0.10332357]
[1769023719694,0.002,2965.9,2964.6,9.912377]
[1769023719899,0.002,2965.9,2964.8,8.012693]
[1769023720181,0.002,2965.9,2964.7,0.10332357]
[1769023720182,0.002,2965.9,2964.9,0.91492523]
[1769023720383,0.002,2966.1,2965.0,6.456815]
[1769023720693,3.36949929,2967.8,2965.6,30.0]
[1769023720850,13.23437578,2967.9,2965.6,30.0]
[1769023721056,0.10332357,2967.4,2963.8,5.32966698]
[1769023721250,0.10332357,2967.6,2964.8,7.77011207]
[1769023721452,6.59889793,2969.1,2966.0,5.093196]
[1769023721666,6.59889793,2969.1,2965.5,0.10332357]
[1769023721667,0.10332357,2968.7,2965.6,30.0]
[1769023721867,0.10332357,2968.7,2965.8,30.0]
[1769023722120,0.10332357,2968.3,2965.8,30.0]
[1769023722297,0.10332357,2968.5,2966.0,5.074345]
[1769023722591,0.0008,2969.7,2966.2,0.10332357]
[1769023722753,0.10332357,2968.5,2965.4,0.128]
[1769023722955,0.10332357,2967.1,2964.9,0.78734356]
[1769023723152,0.10332357,2966.9,2963.6,11.117247]
[1769023723386,0.10332357,2965.9,2962.8,12.879625]
[1769023723583,0.10332357,2965.9,2963.0,30.0]
[1769023723820,0.10332357,2966.7,2963.0,30.0]
[1769023723821,0.128,2967.2,2965.9,0.10332357]
[1769023724023,0.10332357,2969.2,2965.1,5.27966698]
[1769023724024,19.96585552,2969.5,2966.1,1.60360567]
[1769023724315,1.99671956,2969.4,2966.8,1.6330272]
[1769023724503,1.99671956,2969.4,2966.7,10.11224592]
[1769023724504,6.49557436,2969.5,2966.9,7.4693]
[1769023724708,6.49557436,2969.5,2966.8,2.9847]
[1769023724709,0.10332357,2969.4,2966.8,2.9847]
[1769023724884,0.10332357,2969.2,2966.8,3.80490156]
[1769023725077,0.10332357,2969.4,2966.6,3.37085624]
[1769023725278,0.10332357,2969.4,2966.7,0.10332357]
[1769023725515,1.33340385,2969.3,2967.4,0.10332357]
[1769023725722,0.10332357,2969.2,2966.7,0.10332357]
[1769023725918,0.10332357,2969.4,2966.8,3.361871]
[1769023726281,9.86314465,2969.5,2967.2,3.503]
[1769023726589,0.10332357,2969.4,2966.6,0.10332357]
[1769023726799,9.86314465,2969.5,2967.2,6.74026772]
[1769023727123,8.41173233,2969.3,2967.3,0.67402677]
[1769023727293,0.00134006,2969.6,2967.6,0.10332357]
[1769023727487,0.00134006,2969.6,2967.8,0.10332357]
[1769023727712,0.00134006,2969.6,2968.2,0.10332357]
[1769023727919,0.00134006,2969.6,2967.9,1.60188385]
[1769023728126,0.00134006,2969.6,2968.0,0.17052074]
[1769023728286,0.00134006,2969.6,2967.9,30.0]
[1769023728492,0.00134006,2969.6,2968.1,30.0]
[1769023728789,0.00134006,2969.6,2968.1,28.285639]
[1769023728990,0.00134006,2969.6,2967.9,6.84203504]
[1769023729191,0.0008,2970.0,2968.6,0.10332357]
[1769023729513,0.0008,2970.6,2969.7,0.00080008]
[1769023730229,0.0008,2971.8,2970.9,0.00080008]
[1769023730393,0.0008,2971.8,2971.2,0.00080008]
[1769023731022,0.0008,2971.8,2970.9,0.00080008]
[1769023731384,0.0008,2971.8,2970.6,0.00080008]
[1769023731590,8.5150559,2971.7,2970.0,0.00080008]
[1769023731834,8.41173233,2971.7,2969.7,0.00080008]
[1769023731986,0.002,2970.5,2969.7,0.00080008]
[1769023732900,0.10332357,2969.8,2967.1,7.886613]
[1769023733193,8.41173233,2969.9,2967.4,3.36991496]
[1769023733393,3.70440377,2971.8,2967.4,3.36991496]
[1769023733394,8.41173233,2971.0,2968.3,0.10332357]
[1769023733596,0.0008,2971.8,2971.2,0.10332357]
[1769023733796,0.0008,2971.8,2970.5,0.2335703]
[1769023733797,0.0008,2971.8,2971.0,0.10332357]
[1769023733996,0.0008,2971.8,2970.4,0.10332357]
[1769023734219,0.0008,2971.8,2970.8,0.10332357]
[1769023734529,0.0008,2971.8,2970.5,0.10332357]
[1769023734696,0.0008,2971.8,2970.0,0.10332357]
[1769023734900,0.33937071,2971.8,2970.0,2.983294]
[1769023735096,0.0008,2972.1,2971.9,0.10332357]
[1769023735313,0.0008,2972.4,2971.9,0.10332357]
[1769023735501,1e-08,2973.1,2972.1,0.10332357]
[1769023735710,1e-08,2973.1,2972.7,0.10412365]
[1769023735914,1e-08,2973.1,2972.9,0.10332357]
[1769023736231,0.0008,2974.2,2972.7,0.10412365]
[1769023736232,0.0008,2974.2,2972.7,0.00080008]
[1769023736729,6.7249849,2974.0,2972.4,0.00080008]
[1769023736930,10.08749502,2974.0,2972.4,0.00080008]
[1769023737155,3.36253287,2974.0,2972.4,0.00080008]
[1769023737313,0.0008,2974.5,2973.9,0.00080008]
[1769023737712,3.36270956,2974.5,2973.6,0.00080008]
[1769023737914,0.0008,2974.8,2974.2,0.00080008]
[1769023738137,0.0008,2974.8,2973.6,0.00080008]
[1769023738338,3.36244364,2974.8,2973.6,0.00080008]
[1769023738548,3.36179654,2974.6,2973.6,0.00080008]
[1769023738761,3.70826814,2974.7,2973.3,0.00080008]
[1769023738933,7.06995956,2974.7,2973.3,0.00080008]
[1769023739136,0.10332357,2974.4,2973.0,0.00080008]
[1769023739434,0.10332357,2973.6,2971.8,0.00080008]
[1769023739645,0.97493591,2973.5,2971.8,0.00080008]
[1769023739853,0.0008,2974.8,2972.6,0.10332357]
[1769023740055,3.36237052,2974.8,2972.3,10.18298094]
[1769023740348,3.36237052,2974.8,2972.0,0.10332357]
[1769023740349,3.36242232,2974.8,2972.6,3.136817]
[1769023740524,3.36242232,2974.8,2972.2,3.087]
[1769023740525,0.10332357,2974.7,2972.2,3.087]
[1769023740730,0.68273682,2974.6,2972.4,22.313774]
[1769023740916,0.10412357,2974.8,2972.3,0.98162487]
[1769023741116,0.10332357,2974.4,2971.4,0.10332357]
[1769023741337,0.10332357,2974.6,2972.1,5.215081]
[1769023741540,0.0008,2974.8,2972.1,5.31840457]
[1769023741742,0.0008,2974.8,2972.6,30.0]
[1769023742054,3.36237052,2974.8,2972.1,18.697893]
[1769023742266,0.10332357,2973.5,2971.5,0.00080008]
[1769023742432,0.0008,2975.4,2973.4,0.10332357]
[1769023742619,0.0008,2975.4,2972.5,5.27966698]
[1769023742620,0.0008,2975.4,2974.5,0.00080008]
[1769023742812,6.72522795,2975.1,2972.7,9.97277857]
[1769023743036,0.10332357,2974.6,2972.2,2.019]
[1769023743247,0.10332357,2974.8,2971.9,2.72087]
[1769023743248,0.10332357,2974.1,2971.9,2.72087]
[1769023743549,0.10332357,2974.8,2971.9,6.72968372]
[1769023743853,0.002,2973.7,2971.9,6.96129208]
[1769023744157,0.002,2973.7,2971.9,30.0]
[1769023744317,0.00038599,2973.7,2972.0,0.10332357]
[1769023744515,0.00038599,2973.7,2972.2,9.385298]
[1769023744711,0.00038599,2973.7,2972.2,2.505]
[1769023744911,0.00038599,2973.7,2972.1,3.36462317]
[1769023745118,0.0008,2975.4,2973.5,0.10332357]
[1769023745348,0.0008,2975.4,2974.8,0.00080008]
[1769023745545,0.0008,2975.4,2975.1,0.10332357]
[1769023745745,0.0008,2975.7,2975.3,0.10332357]
[1769023745963,0.0008,2976.0,2975.6,0.10332357]
[1769023746168,0.0008,2977.2,2975.8,0.10332357]
[1769023746367,0.0008,2977.2,2975.7,0.00080008]
[1769023746368,0.0008,2977.2,2976.0,0.00080008]
[1769023746540,0.0008,2977.2,2976.1,3.46337832]
[1769023746870,0.0008,2977.2,2976.3,0.00080008]
[1769023747176,0.0008,2977.2,2975.5,0.10332357]
[1769023747334,0.10332357,2977.0,2975.1,0.00080008]
[1769023747535,0.10332357,2976.7,2975.1,0.00080008]
[1769023747770,0.10332357,2976.6,2975.1,0.00080008]
[1769023747952,0.10332357,2976.8,2972.7,0.10332357]
[1769023747953,0.10332357,2975.7,2972.7,0.10332357]
[1769023748141,0.10332357,2975.7,2973.5,0.10332357]
[1769023748142,9.64603555,2975.7,2973.5,0.10332357]
[1769023748505,9.74935912,2975.2,2971.8,0.00080008]
[1769023748777,0.97493591,2975.1,2973.6,0.10332357]
[1769023748952,0.97493591,2975.1,2971.8,0.00080008]
[1769023748953,10.62097146,2975.1,2971.8,0.00080008]
[1769023749153,9.74935912,2974.7,2972.0,6.327548]
[1769023749364,9.74935912,2974.5,2972.0,6.327548]
[1769023749580,9.74935912,2974.5,2971.8,0.00080008]
[1769023749581,0.10332357,2973.4,2971.8,0.00080008]
[1769023749756,9.64603555,2973.4,2971.8,0.00080008]
[1769023750240,10.62097146,2974.4,2972.1,0.10332357]
[1769023750442,10.62097146,2974.4,2973.4,0.01009053]
[1769023750662,9.64603555,2975.4,2973.4,0.01009053]
[1769023750842,9.74935912,2976.5,2974.0,0.10332357]
[1769023751041,6.71952694,2976.4,2974.0,0.10332357]
[1769023751260,0.10332357,2976.3,2973.5,0.10332357]
[1769023751474,6.71952694,2976.4,2973.8,6.14489]
[1769023751790,0.0008,2977.5,2975.0,0.10332357]
[1769023752275,0.10332357,2976.5,2974.0,7.389593]
[1769023752502,3.35965059,2976.5,2973.6,6.72585418]
[1769023752639,0.10332357,2976.0,2973.5,11.091711]
[1769023752844,0.10332357,2975.9,2973.5,6.012118]
[1769023753073,0.10332357,2975.9,2973.4,0.01009053]
[1769023753074,0.10332357,2974.8,2973.4,0.01009053]
[1769023753290,0.10332357,2974.1,2971.8,0.00080008]
[1769023753440,0.10332357,2974.3,2971.9,2.2902]
[1769023753644,0.10332357,2974.2,2971.9,2.2902]
[1769023753844,0.10332357,2974.3,2972.0,3.205945]
[1769023754080,0.10332357,2973.9,2971.9,0.22910001]
[1769023754280,0.10332357,2973.7,2971.8,0.00080008]
[1769023754469,0.10332357,2974.5,2971.8,0.00080008]
[1769023754470,13.11115566,2974.6,2971.8,0.00080008]
[1769023754683,9.64603555,2975.7,2973.0,0.10332357]
[1769023754842,6.71907544,2976.6,2973.9,10.177353]
[1769023755048,6.71907544,2976.6,2973.0,0.10332357]
[1769023755049,0.10332357,2976.2,2973.2,0.10332357]
[1769023755268,0.10332357,2976.4,2973.6,0.10332357]
[1769023755584,16.36498878,2976.7,2973.8,0.10332357]
[1769023755882,0.10332357,2976.4,2974.1,2.310622]
[1769023756045,0.10332357,2976.6,2974.1,3.559394]
[1769023756245,0.10332357,2976.4,2974.1,3.559394]
[1769023756477,0.002,2975.8,2973.6,3.46624631]
[1769023756640,0.002,2975.8,2973.5,5.445894]
[1769023756845,0.002,2975.8,2973.4,0.10332357]
[1769023756846,0.002,2975.8,2973.8,3.36269424]
[1769023757047,0.002,2975.8,2973.6,2.916173]
[1769023757277,0.002,2975.8,2973.5,3.511633]
[1769023757478,0.002,2975.8,2973.7,0.10332357]
[1769023757650,0.002,2975.8,2974.2,6.72449538]
[1769023758047,0.002,2975.8,2974.4,6.5395]
[1769023758280,0.002,2975.8,2974.3,0.10332357]
[1769023758647,0.002,2975.8,2974.0,4.76507]
[1769023758877,0.002,2975.8,2974.2,6.81]
[1769023759082,0.002,2975.8,2974.2,5.001]
[1769023759284,0.002,2975.8,2974.1,0.59016293]
[1769023759450,0.002,2975.8,2974.3,0.10332357]
[1769023759651,0.002,2975.8,2974.4,16.38932018]
[1769023759879,0.002,2975.8,2974.2,3.36215549]
[1769023760181,0.002,2976.0,2974.9,0.10332357]
[1769023760381,0.0008,2977.2,2974.9,0.10332357]
[1769023760382,0.0008,2977.2,2975.5,0.10332357]
[1769023760559,0.0008,2977.2,2975.3,0.10332357]
[1769023760560,0.0008,2977.2,2975.6,1.30973446]
[1769023760756,0.0008,2977.2,2975.6,4.074539]
[1769023760968,0.0008,2977.2,2975.7,2.801828]
[1769023761169,0.0008,2977.2,2975.9,16.355472]
[1769023761370,0.0209575,2977.8,2975.9,13.455906]
[1769023761595,0.0209575,2977.8,2976.9,0.00080008]
[1769023762669,0.0008,2978.4,2977.8,0.00080008]
[1769023763568,0.0008,2978.4,2977.5,0.00080008]
[1769023763569,3.69441705,2978.4,2977.5,0.00080008]
[1769023763769,0.33690967,2978.4,2977.5,0.00080008]
[1769023764094,0.0008,2978.4,2977.5,0.00080008]
[1769023766281,10.07790075,2979.0,2977.5,0.00080008]
[1769023766282,0.0008,2979.9,2978.5,0.10332357]
[1769023766492,0.0008,2979.9,2979.0,0.01087873]
[1769023767218,0.0008,2979.9,2978.7,0.00080008]
[1769023769501,0.19009546,2980.4,2978.9,0.10332357]
[1769023769799,0.19009546,2980.4,2978.7,0.00080008]
[1769023769800,0.19009546,2980.4,2979.6,0.00080008]
[1769023770166,0.0008,2980.5,2979.9,0.00080008]
[1769023770599,3.35318754,2982.3,2980.2,3.35547949]
[1769023770806,13.46934375,2982.1,2980.5,0.00080008]
[1769023771027,13.46926252,2982.1,2980.5,0.00080008]
[1769023771169,16.82261463,2982.1,2980.5,0.00080008]
[1769023771368,10.11591041,2982.1,2980.5,0.00080008]
[1769023771591,16.82259952,2982.1,2980.5,0.00080008]
[1769023771968,0.10332357,2982.0,2980.5,0.00080008]
[1769023772369,0.10332357,2982.0,2980.2,0.00080008]
[1769023772602,0.10332357,2982.0,2979.9,0.00080008]
[1769023772603,6.70758292,2981.7,2979.9,0.00080008]
[1769023772816,13.46925201,2982.1,2979.9,0.00080008]
[1769023772817,10.11591041,2982.1,2979.9,0.00080008]
[1769023772983,3.35178524,2983.5,2979.3,0.00080008]
[1769023772984,10.11591041,2981.3,2979.3,0.00080008]
[1769023773186,1.01167104,2981.2,2979.9,0.10332357]
[1769023773505,1.01167104,2981.2,2979.8,0.10332357]
[1769023774097,6.70735796,2981.8,2979.9,0.10332357]
[1769023774272,6.70735796,2981.8,2979.6,0.00080008]
[1769023774273,6.70735796,2981.8,2979.8,0.10332357]
[1769023774475,3.35352926,2982.0,2980.2,0.10332357]
[1769023774777,6.70650962,2982.2,2980.1,0.10332357]
[1769023774989,10.05979009,2982.2,2980.1,0.10332357]
[1769023775392,10.05979009,2982.2,2979.9,0.10332357]
[1769023775393,13.46903809,2982.3,2980.0,11.50692]
[1769023775567,16.82216577,2982.3,2980.1,1.93550108]
[1769023775896,16.82216577,2982.3,2980.2,3.388112]
[1769023776070,0.10332357,2982.2,2979.6,0.00080008]
[1769023776271,10.11591041,2981.3,2979.6,0.00080008]
[1769023776680,10.11591041,2981.3,2978.8,3.46037078]
[1769023776681,10.11591041,2980.7,2978.7,0.00080008]
[1769023776876,0.10332357,2980.3,2978.7,0.00080008]
[1769023777207,1.03225576,2980.3,2978.7,0.00080008]
[1769023777400,10.21923398,2980.7,2978.7,0.00080008]
[1769023777602,10.11591041,2979.9,2978.1,0.00080008]
[1769023777971,0.10332357,2980.5,2978.1,0.00080008]
[1769023778304,0.10332357,2980.1,2978.1,0.00080008]
[1769023778501,10.21923398,2980.3,2978.1,0.00080008]
[1769023778706,20.18370017,2979.8,2978.1,0.00080008]
[1769023778905,0.10332357,2979.2,2977.5,0.00080008]
[1769023779072,10.21923398,2979.5,2977.2,0.00080008]
[1769023779073,10.11591041,2979.5,2978.0,0.10332357]
[1769023779269,10.11591041,2979.5,2977.2,0.00080008]
[1769023779570,10.11591041,2978.9,2977.2,0.00080008]
[1769023779771,1.0219234,2978.8,2977.2,0.00080008]
[1769023780017,1.12524697,2978.8,2977.2,0.00080008]
[1769023780169,0.10332357,2978.6,2977.2,0.00080008]
[1769023780372,1.12524697,2978.8,2978.0,0.10332357]
[1769023780373,1.0219234,2978.8,2978.0,0.10332357]
[1769023780621,10.06778976,2979.8,2977.3,0.10332357]
[1769023780622,16.82777025,2979.8,2977.3,0.10332357]
[1769023780908,6.71185984,2979.8,2977.6,0.10332357]
[1769023781080,0.10332357,2979.6,2977.2,0.00080008]
[1769023781398,0.10332357,2979.3,2977.2,0.00080008]
[1769023781610,10.11591041,2979.7,2977.3,8.452012]
[1769023781782,1.68277703,2979.6,2977.5,2.014943]
[1769023781971,1.68277703,2979.6,2977.4,0.84528121]
[1769023781972,1.68277703,2979.6,2977.4,0.001]
[1769023782173,0.10332357,2979.2,2977.4,0.001]
[1769023782384,0.10332357,2979.5,2977.4,0.001]
[1769023782608,10.21923398,2980.4,2977.5,0.10332357]
[1769023782811,0.10332357,2980.0,2977.6,7.325201]
[1769023783021,0.10332357,2980.0,2977.5,0.45996155]
[1769023783178,0.10332357,2979.6,2977.4,0.001]
[1769023783510,10.21923398,2979.8,2977.4,0.001]
[1769023783511,10.11591041,2979.8,2977.4,0.001]
[1769023783713,10.11591041,2979.8,2977.5,3.35848192]
[1769023783924,10.11591041,2980.8,2978.5,0.10332357]
[1769023784234,0.002,2981.2,2979.6,0.10332357]
[1769023784380,0.002,2981.2,2979.9,5.07555]
[1769023784587,0.002,2981.2,2979.3,8.204715]
[1769023784826,0.002,2981.2,2979.7,9.478554]
[1769023785003,0.002,2981.2,2979.6,0.10332357]
[1769023785189,0.002,2981.2,2979.7,4.53637]
[1769023785525,0.002,2981.2,2979.4,0.10332357]
[1769023785882,0.002,2981.2,2978.2,5.1590431]
[1769023785883,0.10332357,2981.1,2978.2,0.10332357]
[1769023786287,0.002,2981.2,2979.5,6.53783157]
[1769023786489,0.002,2981.2,2979.1,0.10332357]
[1769023787106,0.002,2981.2,2979.2,3.3566058]
[1769023787304,0.002,2981.2,2979.0,3.35681423]
[1769023787529,0.002,2981.2,2978.6,2.676184]
[1769023787685,0.10332357,2980.5,2978.1,8.046316]
[1769023787883,0.10332357,2980.5,2977.8,2.407]
[1769023788116,0.10332357,2980.5,2977.4,0.10432357]
[1769023788117,0.10332357,2980.3,2977.9,0.10332357]
[1769023788327,0.10332357,2980.2,2977.9,0.10332357]
[1769023788502,0.10332357,2980.2,2977.4,0.001]
[1769023788503,0.10332357,2980.0,2977.4,0.001]
[1769023788702,0.10332357,2979.8,2977.4,0.001]
[1769023788904,6.7116346,2979.9,2977.4,0.001]
[1769023789113,10.0674519,2979.9,2977.4,0.001]
[1769023789319,0.10332357,2979.8,2977.5,5.583217]
[1769023789525,1.18526867,2980.0,2977.5,5.583217]
[1769023789774,3.35468402,2981.0,2978.3,0.10332357]
[1769023790021,3.35446647,2981.1,2978.5,5.949533]
[1769023790232,4.47673066,2981.2,2978.6,0.10332357]
[1769023790385,1.66777702,2981.1,2978.6,0.10332357]
[1769023790592,0.10332357,2981.8,2978.6,0.10332357]
[1769023790593,11.64903951,2983.2,2980.8,0.10332357]
[1769023790808,18.35331233,2983.2,2980.4,21.44806796]
[1769023791042,15.00114463,2983.2,2980.9,0.10332357]
[1769023791214,18.35327253,2983.2,2981.0,0.55179256]
[1769023791431,0.003,2983.2,2981.7,0.10332357]
[1769023791591,0.003,2983.2,2981.8,0.25831013]
[1769023791785,0.003,2983.2,2981.9,0.25831013]
[1769023791987,3.35515436,2983.2,2982.0,0.25831013]
[1769023792218,10.05941384,2983.2,2982.1,0.25831013]
[1769023792425,1.11959731,2983.1,2980.2,3.35545726]
[1769023792628,0.10332357,2982.7,2980.7,0.25852213]
[1769023792927,0.10332357,2982.7,2978.6,0.10332357]
[1769023792928,0.10332357,2981.1,2978.6,0.10332357]
[1769023793237,0.555,2981.3,2978.8,9.286888]
[1769023793392,0.10332357,2980.9,2978.5,0.10332357]
[1769023793599,1.01627374,2983.1,2981.6,0.10332357]
[1769023793826,3.35224209,2983.1,2981.2,0.10332357]
[1769023794127,0.10332357,2985.0,2982.2,2.588313]
[1769023794316,0.10332357,2985.0,2982.2,8.26601]
[1769023794517,8.87799187,2985.4,2982.7,0.10332357]
[1769023794518,6.80281775,2985.3,2982.7,0.10332357]
[1769023794715,0.10332357,2984.9,2982.8,2.427562]
[1769023794917,0.10332357,2984.7,2982.2,0.10332357]
[1769023795120,0.10332357,2984.1,2981.0,10.34275057]